bitfinex/quotes_SOLUSD_20241127
["timestamp","ask_amount","ask_price","bid_price","bid_amount"]
[1732670278834,13.60251094,231.03,231.0,6.6007]
[1732670279261,13.60251094,231.05,231.0,10.9296]
[1732670279851,13.60251094,231.06,231.0,10.9296]
[1732670280161,0.520458,231.08,231.05,13.60251094]
[1732670280337,0.520458,231.08,231.06,13.60251094]
[1732670280738,0.520458,231.08,231.07,4.3276]
[1732670282858,22.12260538,231.08,231.01,1.85021852]
[1732670283169,0.520458,231.08,231.03,4.3283]
[1732670283960,22.12260538,231.08,231.0,28.20284738]
[1732670284153,21.60214738,231.06,231.01,4.3287]
[1732670284554,21.60214738,231.07,231.01,4.3287]
[1732670284975,21.60214738,231.06,231.01,4.3287]
[1732670285267,0.520458,231.08,231.02,21.60214738]
[1732670286444,22.12260538,231.08,231.01,4.3287]
[1732670287364,22.12260538,231.08,231.0,28.20284738]
[1732670287365,21.60214738,231.06,231.0,6.6007]
[1732670287775,21.60214738,231.06,231.0,10.9295]
[1732670288364,21.60214738,231.04,230.98,4.3292]
[1732670288847,21.60214738,231.05,230.98,4.3292]
[1732670289242,3.549658,231.08,230.95,27.80244738]
[1732670289243,21.60214738,231.03,230.95,27.80244738]
[1732670289450,21.60214738,230.98,230.92,15.1954]
[1732670289758,3.549658,231.08,230.9,4.3307]
[1732670289759,21.60214738,231.01,230.9,4.3307]
[1732670289959,3.549658,231.08,230.98,21.60214738]
[1732670290159,0.520458,231.08,230.91,15.1954]
[1732670290956,0.520458,231.08,230.94,20.0]
[1732670291165,21.60214738,231.03,230.96,21.60214738]
[1732670291661,21.60214738,231.04,230.97,21.60214738]
[1732670292251,21.60214738,231.04,230.98,4.3293]
[1732670292575,3.549658,231.08,230.93,21.60214738]
[1732670292576,21.60214738,231.01,230.93,21.60214738]
[1732670292873,21.60214738,230.98,230.91,15.1954]
[1732670293647,21.60214738,230.99,230.92,4.3305]
[1732670294244,3.0293,231.07,230.91,36.79754738]
[1732670294245,21.60214738,230.98,230.91,36.79754738]
[1732670294454,21.60214738,230.98,230.91,41.12814738]
[1732670294949,21.60214738,230.99,230.91,41.12814738]
[1732670296173,21.60214738,230.98,230.91,41.12814738]
[1732670297551,21.60214738,230.99,230.91,41.12814738]
[1732670297747,21.60214738,231.0,230.92,21.60214738]
[1732670297976,21.60214738,231.05,230.97,21.60214738]
[1732670298546,21.60214738,231.04,230.96,21.60214738]
[1732670299280,21.60214738,231.0,230.92,25.93264738]
[1732670300074,21.60214738,231.01,230.93,21.60214738]
[1732670300376,21.60214738,231.04,230.97,21.60214738]
[1732670300683,0.520458,231.08,231.01,21.60214738]
[1732670300852,0.520458,231.08,231.02,21.60214738]
[1732670302361,0.520458,231.08,231.0,25.93114738]
[1732670303375,0.520458,231.08,231.02,21.60214738]
[1732670303584,0.520458,231.08,231.04,21.60214738]
[1732670303880,0.520458,231.08,231.06,21.60214738]
[1732670304473,0.520458,231.08,231.07,13.499813]
[1732670304675,0.520458,231.08,231.07,17.827413]
[1732670305353,0.520458,231.08,231.07,24.193213]
[1732670309174,0.520458,231.08,231.02,4.3286]
[1732670309383,14.020271,231.08,231.02,4.3286]
[1732670309562,0.520458,231.08,231.03,13.499813]
[1732670309761,0.520458,231.08,231.06,13.499813]
[1732670310383,0.520458,231.08,231.07,13.499813]
[1732670310680,0.520458,231.08,231.07,17.827413]
[1732670312560,5.8e-05,231.08,231.07,17.827413]
[1732670313383,15.7027,231.26,231.1,20.0]
[1732670313568,13.499813,231.27,231.19,13.499813]
[1732670313764,13.499813,231.26,231.19,13.499813]
[1732670314281,0.520458,231.31,231.19,13.499813]
[1732670314485,13.499813,231.26,231.19,13.499813]
[1732670314670,13.499813,231.26,231.19,17.825113]
[1732670315083,3.0264,231.3,231.16,33.499813]
[1732670315084,13.499813,231.25,231.16,33.499813]
[1732670316265,21.58506528,231.23,231.17,4.3258]
[1732670316465,21.58506528,231.23,231.16,21.58506528]
[1732670316784,21.58506528,231.23,231.16,25.91096528]
[1732670317089,21.58506528,231.23,231.16,4.3259]
[1732670317293,21.58506528,231.21,231.16,4.3259]
[1732670317670,21.58506528,231.2,231.16,4.3259]
[1732670317991,21.58506528,231.22,231.15,21.58506528]
[1732670318584,21.58506528,231.22,231.14,4.3262]
[1732670318585,21.58506528,231.22,231.14,25.91126528]
[1732670318800,21.58506528,231.25,231.17,21.58506528]
[1732670319371,21.58506528,231.27,231.2,21.58506528]
[1732670319680,21.58506528,231.27,231.2,25.91016528]
[1732670320394,21.58506528,231.27,231.2,4.3251]
[1732670320787,21.58506528,231.25,231.2,4.3251]
[1732670321291,23.776884,231.3,231.19,21.58506528]
[1732670321466,21.58506528,231.25,231.18,25.91046528]
[1732670321883,21.58506528,231.26,231.19,21.58506528]
[1732670322095,26.803184,231.3,231.18,4.3254]
[1732670322096,21.58506528,231.25,231.18,4.3254]
[1732670322695,21.58506528,231.24,231.17,22.3983]
[1732670323484,21.58506528,231.24,231.17,26.724]
[1732670325290,21.58506528,231.2,231.14,4.3261]
[1732670325499,21.58506528,231.18,231.11,22.3983]
[1732670325677,21.58506528,231.17,231.12,4.3265]
[1732670326488,21.58506528,231.17,231.11,6.2087]
[1732670326691,21.58506528,231.13,231.07,21.58506528]
[1732670326897,23.776884,231.21,231.06,22.3983]
[1732670326898,21.58506528,231.11,231.06,26.7259]
[1732670327199,21.58506528,231.11,231.04,4.3281]
[1732670327376,21.58506528,231.09,231.04,4.3281]
[1732670327580,21.58506528,231.1,231.04,4.3281]
[1732670328500,21.58506528,231.13,231.06,21.58506528]
[1732670328701,21.58506528,231.12,231.05,21.58506528]
[1732670329395,21.58506528,231.11,231.04,25.91316528]
[1732670329606,21.58506528,231.11,231.04,4.3281]
[1732670329788,21.58506528,231.09,231.04,4.3281]
[1732670329978,21.58506528,231.1,231.04,4.3281]
[1732670330298,21.58506528,231.08,231.02,4.3284]
[1732670330699,21.58506528,231.1,231.03,21.58506528]
[1732670330999,21.58506528,231.09,231.02,25.91346528]
[1732670331205,21.58506528,231.1,231.03,21.58506528]
[1732670331784,21.58506528,231.1,231.02,4.3284]
[1732670331785,21.58506528,231.12,231.04,25.91326528]
[1732670332007,21.58506528,231.13,231.05,21.58506528]
[1732670332393,21.58506528,231.13,231.04,4.3282]
[1732670332394,21.58506528,231.1,231.04,4.3282]
[1732670332782,21.58506528,231.11,231.04,21.58506528]
[1732670333300,21.58506528,231.1,231.02,4.3286]
[1732670333501,21.58506528,231.1,231.03,21.58506528]
[1732670333800,21.58506528,231.12,231.04,21.58506528]
[1732670334599,21.58506528,231.12,231.05,4.328]
[1732670334780,21.58506528,231.13,231.06,21.58506528]
[1732670335105,21.58506528,231.15,231.07,21.58506528]
[1732670335405,21.58506528,231.18,231.11,21.58506528]
[1732670336483,21.58506528,231.19,231.12,25.91176528]
[1732670336679,21.58506528,231.22,231.15,21.58506528]
[1732670337079,21.58506528,231.23,231.16,21.58506528]
[1732670337307,15.7027,231.28,231.12,21.3522]
[1732670337500,21.58506528,231.27,231.2,21.58506528]
[1732670338380,13.48220457,231.3,231.23,13.48220457]
[1732670338580,13.48220457,231.3,231.24,4.3245]
[1732670338991,13.48220457,231.29,231.24,4.3245]
[1732670339185,13.48220457,231.25,231.18,13.48220457]
[1732670339381,13.48220457,231.26,231.19,13.48220457]
[1732670340190,13.48220457,231.27,231.2,13.48220457]
[1732670340401,21.57740663,231.27,231.2,21.57740663]
[1732670340713,21.57740663,231.25,231.18,21.57740663]
[1732670340899,21.57740663,231.26,231.18,21.57740663]
[1732670341290,21.57740663,231.26,231.19,21.57740663]
[1732670341988,21.57740663,231.27,231.2,21.57740663]
[1732670342204,21.57740663,231.29,231.21,21.57740663]
[1732670342410,21.57740663,231.3,231.23,21.57740663]
[1732670342584,22.09786463,231.31,231.24,21.57740663]
[1732670342989,21.57740663,231.29,231.21,21.57740663]
[1732670343194,21.57740663,231.27,231.2,21.57740663]
[1732670343489,21.57740663,231.24,231.17,21.57740663]
[1732670344008,21.57740663,231.22,231.15,21.57740663]
[1732670344208,21.57740663,231.24,231.17,21.57740663]
[1732670344387,21.57740663,231.25,231.18,21.57740663]
[1732670344583,0.520458,231.31,231.21,21.57740663]
[1732670344584,21.57740663,231.28,231.21,21.57740663]
[1732670344816,21.57740663,231.3,231.22,21.57740663]
[1732670345108,21.57740663,231.29,231.22,21.57740663]
[1732670345688,21.57740663,231.29,231.23,4.3246]
[1732670346381,0.520458,231.31,231.19,21.57740663]
[1732670346382,21.57740663,231.26,231.19,21.57740663]
[1732670346607,3.546758,231.31,231.18,25.90300663]
[1732670346608,21.57740663,231.25,231.18,25.90300663]
[1732670347117,21.57740663,231.26,231.19,21.57740663]
[1732670347503,23.776884,231.2,231.06,13.59464235]
[1732670347702,21.57740663,231.12,231.04,21.57740663]
[1732670348597,21.57740663,231.12,231.04,25.90560663]
[1732670349001,21.57740663,231.12,230.93,5.0]
[1732670349002,21.57740663,231.05,230.98,4.3293]
[1732670349203,21.57740663,231.02,230.97,6.2827]
[1732670349385,23.776884,231.11,230.97,6.2827]
[1732670349585,21.57740663,231.05,230.97,6.2827]
[1732670349781,21.57740663,231.05,230.97,32.18960663]
[1732670350084,21.57740663,231.01,230.97,6.2827]
[1732670351295,21.57740663,231.01,230.95,20.7402]
[1732670351491,21.57740663,231.05,230.97,21.57740663]
[1732670351898,21.57740663,231.07,230.99,21.57740663]
[1732670352089,21.57740663,231.07,230.97,21.57740663]
[1732670352287,21.57740663,231.07,230.95,20.7402]
[1732670352288,23.776884,230.97,230.86,6.79732117]
[1732670352502,21.57740663,230.91,230.86,6.79732117]
[1732670353018,21.57740663,230.89,230.86,6.79732117]
[1732670353889,21.57740663,230.93,230.86,6.79732117]
[1732670354105,21.57740663,230.91,230.86,6.79732117]
[1732670355103,21.57740663,230.89,230.86,6.79732117]
[1732670355494,21.57740663,230.89,230.87,6.79732117]
[1732670355693,21.57740663,230.89,230.83,27.18928471]
[1732670357516,21.57740663,230.87,230.81,6.2827]
[1732670358016,21.57740663,230.85,230.77,25.91060663]
[1732670358320,21.57740663,230.81,230.75,6.0511]
[1732670358524,21.57740663,230.81,230.75,10.3846]
[1732670358916,21.57740663,230.83,230.75,31.96200663]
[1732670359432,21.57740663,230.85,230.77,21.57740663]
[1732670359624,21.57740663,230.89,230.81,21.57740663]
[1732670360131,3.0309,230.95,230.79,21.57740663]
[1732670360132,21.57740663,230.87,230.79,21.57740663]
[1732670360336,21.57740663,230.85,230.77,21.57740663]
[1732670360514,21.57740663,230.85,230.77,25.91050663]
[1732670361230,21.57740663,230.89,230.81,21.57740663]
[1732670362731,21.57740663,230.89,230.82,4.3323]
[1732670363745,21.57740663,230.87,230.81,4.3324]
[1732670363911,21.57740663,230.83,230.78,20.0]
[1732670364241,21.57740663,230.83,230.75,27.62850663]
[1732670364414,21.57740663,230.81,230.75,6.0511]
[1732670364734,21.57740663,230.81,230.75,10.3847]
[1732670364917,21.57740663,230.77,230.75,6.0511]
[1732670365115,21.57740663,230.77,230.71,4.3344]
[1732670365333,21.57740663,230.79,230.71,25.91180663]
[1732670365510,21.57740663,230.81,230.73,21.57740663]
[1732670365712,21.57740663,230.81,230.74,4.3338]
[1732670367446,21.57740663,230.83,230.75,21.57740663]
[1732670369030,21.57740663,230.83,230.76,4.3335]
[1732670371348,3.0319,230.88,230.76,4.3335]
[1732670371349,21.57740663,230.81,230.76,4.3335]
[1732670371554,21.57740663,230.81,230.73,21.57740663]
[1732670371555,21.57740663,230.81,230.74,4.3337]
[1732670371723,21.57740663,230.83,230.75,21.57740663]
[1732670372524,21.57740663,230.85,230.77,21.57740663]
[1732670372724,21.57740663,230.87,230.79,21.57740663]
[1732670373131,21.57740663,230.85,230.77,21.57740663]
[1732670373345,21.57740663,230.85,230.75,21.57740663]
[1732670373554,21.57740663,230.85,230.76,4.3335]
[1732670374437,21.57740663,230.83,230.76,4.3335]
[1732670375242,21.57740663,230.85,230.77,21.57740663]
[1732670375441,21.57740663,230.85,230.78,4.3331]
[1732670376161,21.57740663,230.87,230.79,21.57740663]
[1732670376335,21.57740663,230.89,230.81,21.57740663]
[1732670376853,15.9864,230.93,230.78,4.3331]
[1732670376854,21.57740663,230.93,230.85,21.57740663]
[1732670377037,21.57740663,230.93,230.8,6.1697]
[1732670377038,21.57740663,230.95,230.87,21.57740663]
[1732670377283,21.57740663,230.96,230.88,21.57740663]
[1732670377430,21.57740663,230.96,230.89,4.331]
[1732670377843,21.57740663,230.94,230.89,4.331]
[1732670378046,21.57740663,230.92,230.87,4.3312]
[1732670378644,21.57740663,230.92,230.84,20.0]
[1732670378835,21.57740663,230.92,230.82,21.57740663]
[1732670378836,21.57740663,230.9,230.82,21.57740663]
[1732670379558,21.57740663,230.9,230.84,4.3319]
[1732670380438,21.57740663,230.88,230.82,4.3322]
[1732670381257,21.57740663,230.88,230.8,27.74710663]
[1732670381258,21.57740663,230.86,230.8,10.5023]
[1732670381439,21.57740663,230.86,230.8,6.1697]
[1732670381841,21.57740663,230.86,230.8,10.5024]
[1732670382066,21.57740663,230.86,230.8,6.1697]
[1732670382364,21.57740663,230.84,230.8,6.1697]
[1732670384271,21.57740663,230.84,230.77,4.3332]
[1732670384459,21.57740663,230.82,230.75,6.1697]
[1732670384646,21.57740663,230.82,230.75,10.5033]
[1732670385651,24.61000663,230.82,230.75,6.1697]
[1732670386268,21.57740663,230.82,230.75,6.1697]
[1732670387168,21.57740663,230.82,230.75,10.5033]
[1732670388464,21.57740663,230.8,230.73,4.3339]
[1732670388954,21.57740663,230.78,230.7,27.74710663]
[1732670389154,21.57740663,230.78,230.71,4.3343]
[1732670392261,7.58,230.87,230.71,4.3343]
[1732670392455,13.53953822,230.81,230.74,13.53953822]
[1732670392845,13.53953822,230.81,230.72,13.53953822]
[1732670393567,13.53953822,230.77,230.7,24.04363822]
[1732670393758,13.53953822,230.79,230.7,24.04363822]
[1732670395456,16.57243822,230.8,230.72,13.53953822]
[1732670395657,13.53953822,230.8,230.73,13.53953822]
[1732670396075,13.53953822,230.8,230.71,13.53953822]
[1732670397150,13.53953822,230.78,230.72,4.3342]
[1732670397345,13.53953822,230.78,230.71,13.53953822]
[1732670397346,23.776884,230.77,230.71,13.53953822]
[1732670397551,13.53953822,230.76,230.69,13.53953822]
[1732670398759,13.53953822,230.76,230.65,6.1697]
[1732670398760,13.53953822,230.79,230.72,13.53953822]
[1732670398966,23.776884,230.79,230.72,13.53953822]
[1732670399559,13.53953822,230.82,230.74,13.53953822]
[1732670399971,13.53953822,230.81,230.73,13.53953822]
[1732670400154,13.53953822,230.82,230.74,13.53953822]
[1732670400780,13.53953822,230.82,230.74,17.87333822]
[1732670401267,13.53953822,230.79,230.65,4.3355]
[1732670401470,13.53953822,230.7,230.63,13.53953822]
[1732670401658,13.53953822,230.72,230.65,13.53953822]
[1732670401983,13.53953822,230.76,230.67,13.53953822]
[1732670402291,13.53953822,230.78,230.69,13.53953822]
[1732670402490,13.53953822,230.78,230.68,6.3343]
[1732670402491,13.53953822,230.78,230.71,13.53953822]
[1732670402779,13.53953822,230.76,230.69,13.53953822]
[1732670402987,13.53953822,230.76,230.69,17.87423822]
[1732670403290,13.53953822,230.8,230.71,13.53953822]
[1732670403598,13.53953822,230.8,230.73,13.53953822]
[1732670403800,13.53953822,230.8,230.71,13.53953822]
[1732670403973,3.0327,230.82,230.71,13.53953822]
[1732670404172,13.53953822,230.82,230.74,13.53953822]
[1732670404495,13.53953822,230.84,230.76,13.53953822]
[1732670404993,13.53953822,230.86,230.78,13.53953822]
[1732670406173,13.53953822,230.88,230.8,13.53953822]
[1732670406494,16.577,230.93,230.79,6.3343]
[1732670406495,3.031,230.95,230.83,21.64873608]
[1732670406792,21.64873608,230.93,230.85,21.64873608]
[1732670406969,21.64873608,230.89,230.81,21.64873608]
[1732670407174,16.577,230.88,230.74,10.8338]
[1732670407484,16.577,230.88,230.59,83.39335374]
[1732670407485,21.64873608,230.8,230.73,6.3343]
[1732670407807,21.64873608,230.8,230.73,10.6683]
[1732670407990,21.64873608,230.82,230.73,32.31703608]
[1732670408296,21.64873608,230.82,230.65,6.5]
[1732670408297,21.64873608,230.76,230.65,4.3354]
[1732670408502,21.64873608,230.74,230.65,25.98413608]
[1732670408703,21.64873608,230.7,230.64,6.3343]
[1732670409490,21.64873608,230.7,230.64,10.6699]
[1732670411498,23.776884,230.71,230.64,10.6699]
[1732670411708,21.64873608,230.72,230.65,21.64873608]
[1732670411870,21.64873608,230.74,230.65,21.64873608]
[1732670412076,23.776884,230.73,230.65,21.64873608]
[1732670412900,23.776884,230.73,230.66,4.3353]
[1732670413819,21.64873608,230.7,230.61,21.64873608]
[1732670414103,23.776884,230.73,230.58,6.3343]
[1732670414104,21.64873608,230.62,230.58,6.3343]
[1732670414274,21.64873608,230.6,230.57,15.4487]
[1732670414481,21.64873608,230.6,230.53,10.672]
[1732670414674,21.64873608,230.58,230.53,6.3343]
[1732670414879,21.64873608,230.54,230.51,0.520458]
[1732670415182,21.64873608,230.56,230.51,4.858558]
[1732670415582,21.64873608,230.58,230.51,4.858558]
[1732670415789,21.64873608,230.58,230.51,26.50729408]
[1732670416205,21.64873608,230.58,230.51,0.520458]
[1732670416497,21.64873608,230.54,230.51,0.520458]
[1732670416708,21.64873608,230.52,230.51,0.520458]
[1732670417508,21.64873608,230.56,230.51,0.520458]
[1732670418082,21.64873608,230.54,230.51,0.520458]
[1732670418281,21.64873608,230.52,230.51,0.520458]
[1732670418486,45.42562008,230.52,230.51,0.520458]
[1732670420281,67.07435616,230.52,230.51,0.520458]
[1732670420480,3.0367,230.51,230.38,6.0117]
[1732670420712,21.64873608,230.43,230.38,6.0117]
[1732670421408,21.64873608,230.45,230.38,6.0117]
[1732670422007,23.776884,230.44,230.38,6.0117]
[1732670422205,23.776884,230.42,230.32,4.3416]
[1732670422405,21.64873608,230.52,230.32,4.3416]
[1732670422406,21.64873608,230.47,230.38,21.64873608]
[1732670422611,23.776884,230.48,230.42,21.64873608]
[1732670423093,21.64873608,230.55,230.46,21.64873608]
[1732670423302,21.64873608,230.57,230.5,21.64873608]
[1732670423612,15.082,230.61,230.44,16.0966]
[1732670423613,24.68423608,230.61,230.54,21.64873608]
[1732670423791,21.64873608,230.61,230.54,21.64873608]
[1732670424099,21.64873608,230.63,230.56,21.64873608]
[1732670424615,21.64873608,230.67,230.58,21.64873608]
[1732670425111,21.64873608,230.64,230.56,31.99753608]
[1732670425705,21.64873608,230.68,230.58,21.64873608]
[1732670425893,21.64873608,230.72,230.64,21.64873608]
[1732670426512,21.64873608,230.74,230.66,21.64873608]
[1732670426709,21.64873608,230.76,230.68,21.64873608]
[1732670426912,12.18851282,230.77,230.7,21.64873608]
[1732670427096,12.18851282,230.77,230.72,21.64873608]
[1732670427699,12.18851282,230.77,230.7,31.99493608]
[1732670427893,12.18851282,230.77,230.72,21.64873608]
[1732670428413,12.18851282,230.77,230.74,21.64873608]
[1732670428710,12.18851282,230.77,230.7,10.3462]
[1732670428711,12.18851282,230.77,230.76,21.64873608]
[1732670429211,5.0,230.93,230.76,21.64873608]
[1732670429212,21.64873608,230.87,230.76,25.98223608]
[1732670429386,21.64873608,230.87,230.78,21.64873608]
[1732670429789,21.64873608,230.85,230.76,21.64873608]
[1732670429997,21.64873608,230.85,230.78,21.64873608]
[1732670430814,21.64873608,230.89,230.8,21.64873608]
[1732670430992,21.64873608,230.91,230.82,21.64873608]
[1732670431204,21.64873608,230.89,230.82,21.64873608]
[1732670431414,21.64873608,230.91,230.82,21.64873608]
[1732670431912,21.64873608,230.91,230.84,21.64873608]
[1732670432096,15.20967102,230.95,230.86,28.12793608]
[1732670432097,33.8274071,230.95,230.86,28.12793608]
[1732670432291,33.8274071,230.95,230.88,21.64873608]
[1732670432496,12.17867102,230.95,230.88,21.64873608]
[1732670432821,33.8274071,230.95,230.88,21.64873608]
[1732670433018,33.8274071,230.95,230.86,28.12793608]
[1732670433521,21.64873608,230.9,230.86,6.4792]
[1732670433824,21.64873608,230.88,230.81,4.3325]
[1732670434014,21.64873608,230.89,230.82,21.64873608]
[1732670434315,21.64873608,230.91,230.83,21.64873608]
[1732670434619,21.64873608,230.92,230.84,21.64873608]
[1732670435118,45.42562008,230.93,230.85,21.64873608]
[1732670435698,12.17867102,230.95,230.87,21.64873608]
[1732670435699,33.8274071,230.95,230.87,21.64873608]
[1732670436017,33.8274071,230.95,230.89,21.64873608]
[1732670436018,12.17867102,230.95,230.89,21.64873608]
[1732670436229,12.17867102,230.95,230.92,21.64873608]
[1732670436389,12.17867102,230.95,230.94,21.64873608]
[1732670436816,21.64873608,231.07,230.94,28.12793608]
[1732670437015,21.64873608,231.07,231.0,21.64873608]
[1732670437355,21.64873608,231.06,230.99,21.64873608]
[1732670437517,21.64873608,231.05,230.96,21.64873608]
[1732670437709,21.64873608,231.04,230.96,21.64873608]
[1732670438617,21.64873608,231.04,230.96,25.97833608]
[1732670438997,21.64873608,231.04,230.96,21.64873608]
[1732670439308,21.64873608,231.02,230.94,32.45793608]
[1732670440003,21.64873608,231.06,230.98,21.64873608]
[1732670440509,21.64873608,231.06,230.94,6.4792]
[1732670440510,22.16919408,231.08,231.0,21.64873608]
[1732670441708,21.64873608,231.06,230.98,21.64873608]
[1732670441911,21.64873608,231.02,230.94,28.12793608]
[1732670442206,21.64873608,231.0,230.94,6.4792]
[1732670442725,21.64873608,231.02,230.94,10.8092]
[1732670442918,21.64873608,231.02,230.94,32.45793608]
[1732670444030,21.64873608,231.04,230.96,21.64873608]
[1732670444731,21.64873608,231.04,230.96,25.97833608]
[1732670445912,21.64873608,231.02,230.94,28.12793608]
[1732670446343,21.64873608,230.98,230.9,21.64873608]
[1732670446525,21.64873608,230.98,230.9,25.97943608]
[1732670446714,23.776884,230.97,230.88,28.12793608]
[1732670446914,21.64873608,230.96,230.88,32.45903608]
[1732670448756,23.776884,230.98,230.92,21.64873608]
[1732670448934,21.64873608,231.02,230.94,21.64873608]
[1732670449120,21.64873608,231.0,230.92,21.64873608]
[1732670449322,21.64873608,231.0,230.9,21.64873608]
[1732670449944,21.64873608,231.0,230.91,4.3306]
[1732670450523,20.0,231.04,230.96,21.64873608]
[1732670450731,3.0297,231.05,230.96,21.64873608]
[1732670450732,21.64873608,231.05,230.96,21.64873608]
[1732670451027,24.67843608,231.05,230.96,21.64873608]
[1732670451239,21.64873608,231.05,230.96,21.64873608]
[1732670451445,21.64873608,230.98,230.91,20.0]
[1732670451649,21.64873608,231.0,230.93,21.64873608]
[1732670452144,24.67903608,231.0,230.91,21.64873608]
[1732670452565,21.64873608,231.0,230.91,21.64873608]
[1732670453043,21.64873608,231.0,230.93,21.64873608]
[1732670453228,21.64873608,231.06,230.97,21.64873608]
[1732670453543,21.64873608,231.06,230.99,21.64873608]
[1732670453848,21.64873608,231.06,230.97,21.64873608]
[1732670454144,21.64873608,231.06,230.97,25.97823608]
[1732670454529,21.64873608,231.02,230.95,21.64873608]
[1732670455055,21.64873608,231.02,230.9,10.8271]
[1732670455056,21.64873608,231.0,230.91,21.64873608]
[1732670455544,21.64873608,230.98,230.91,21.64873608]
[1732670456144,21.64873608,231.0,230.91,25.97923608]
[1732670456340,21.64873608,230.94,230.87,21.77903338]
[1732670456540,21.64873608,230.94,230.87,4.4615973]
[1732670456731,23.776884,230.95,230.87,4.4615973]
[1732670456732,23.776884,230.95,230.87,26.11033338]
[1732670457127,21.64873608,230.96,230.87,26.11033338]
[1732670457354,21.64873608,230.96,230.89,21.64873608]
[1732670458051,21.64873608,230.96,230.89,25.97963608]
[1732670458535,12.1734289,231.02,230.89,25.97963608]
[1732670458536,21.64873608,231.0,230.91,21.64873608]
[1732670458737,23.776884,230.99,230.91,21.64873608]
[1732670459743,23.776884,230.99,230.91,25.97923608]
[1732670459941,21.64873608,231.0,230.93,21.64873608]
[1732670460146,21.64873608,231.04,230.95,21.64873608]
[1732670460340,21.64873608,231.04,230.97,21.64873608]
[1732670461752,21.64873608,231.04,230.97,25.97813608]
[1732670461966,21.64873608,231.06,230.97,25.97813608]
[1732670462260,0.520458,231.08,231.03,21.64873608]
[1732670462641,0.520458,231.08,230.99,15.2594]
[1732670462642,22.16919408,231.08,230.99,36.90813608]
[1732670464239,22.16919408,231.08,231.0,4.329]
[1732670464445,0.520458,231.08,231.03,21.64873608]
[1732670465361,0.520458,231.08,231.05,21.64873608]
[1732670465555,0.520458,231.08,231.07,21.64873608]
[1732670465859,0.520458,231.08,231.07,27.72603608]
[1732670466361,0.520458,231.08,231.07,32.05363608]
[1732670470168,0.520458,231.08,231.07,27.72603608]
[1732670472553,0.520458,231.08,231.05,21.64873608]
[1732670472758,0.520458,231.08,231.03,21.64873608]
[1732670472963,21.64873608,231.06,230.97,28.15043608]
[1732670473144,21.64873608,231.02,230.97,6.5017]
[1732670473347,21.64873608,231.0,230.93,25.97893608]
[1732670473543,21.64873608,231.0,230.93,4.3302]
[1732670473742,21.64873608,231.0,230.93,25.97893608]
[1732670473944,21.64873608,231.05,230.97,21.64873608]
[1732670474158,0.520458,231.08,230.95,21.64873608]
[1732670474159,21.64873608,231.03,230.95,21.64873608]
[1732670474368,21.64873608,231.01,230.93,25.97893608]
[1732670474547,23.776884,231.02,230.95,21.64873608]
[1732670474893,23.776884,231.04,230.97,21.64873608]
[1732670475065,23.776884,231.06,230.99,21.64873608]
[1732670475367,0.520458,231.08,230.96,15.154]
[1732670475666,0.520458,231.08,231.07,21.64873608]
[1732670476346,0.520458,231.08,231.01,15.0709]
[1732670476547,0.520458,231.08,231.07,21.64873608]
[1732670476766,0.520458,231.08,231.07,25.97633608]
[1732670477069,0.520458,231.08,231.05,25.97663608]
[1732670477860,0.520458,231.08,231.07,21.64873608]
[1732670478252,5.8e-05,231.08,231.07,22.29760405]
[1732670478670,5.8e-05,231.08,231.07,26.62520405]
[1732670479379,5.8e-05,231.08,231.07,25.97633608]
[1732670480869,5.8e-05,231.08,231.07,4.3276]
[1732670481472,5.8e-05,231.08,231.07,25.97633608]
[1732670482279,5.8e-05,231.08,231.03,21.64873608]
[1732670482466,21.64873608,231.06,230.99,4.329]
[1732670482674,21.64873608,231.04,230.95,21.64873608]
[1732670482977,5.8e-05,231.08,230.93,26.8759]
[1732670482978,21.64873608,231.06,230.97,21.64873608]
[1732670483182,23.776884,231.05,230.97,21.64873608]
[1732670483363,21.64879408,231.08,230.99,21.64873608]
[1732670483571,21.64873608,231.06,230.99,21.64873608]
[1732670484909,5.8e-05,231.08,231.03,21.64873608]
[1732670485070,5.8e-05,231.08,231.05,21.64873608]
[1732670485960,5.8e-05,231.08,231.04,4.3282]
[1732670488661,5.8e-05,231.08,231.05,21.64873608]
[1732670489261,5.8e-05,231.08,231.04,4.3282]
[1732670491481,5.8e-05,231.08,231.05,21.64873608]
[1732670491684,5.8e-05,231.08,231.07,21.64873608]
[1732670492980,5.8e-05,231.08,231.07,25.97633608]
[1732670493687,5.8e-05,231.08,231.05,25.97663608]
[1732670494769,5.8e-05,231.08,231.07,21.64873608]
[1732670494970,5.8e-05,231.08,231.07,4.3276]
[1732670495882,5.8e-05,231.08,230.97,21.6478]
[1732670495883,5.8e-05,231.08,230.94,15.1554]
[1732670496086,21.64873608,231.06,230.99,21.64873608]
[1732670496291,21.64873608,231.04,230.97,21.64873608]